Workbook

Sheet Стр.1
BE1: УТВЕРЖДАЮ
BE2: И.о. директора ГАПОУ МО "ПЭК"
BE3: (наименование должности лица, утверждающего документ)
BZ4: О.И. Макашина
BE5: (подпись) | BZ5: (расшифровка подписи)
BN6: " | BP6: 09 | BT6: " | BV6: января | CK6: 20 | CN6: 18 | CR6: г.
A8: План финансово-хозяйственной деятельности
A9: на 2018 год (на 2018 год и плановый период 2019 и 2020 годов)
CO10: КОДЫ
CM11: Форма по ОКУД
AM12: " | AN12: 09 | AR12: " | AU12: января | BJ12: 20 | BN12: 18 | BQ12: г. | CD12: Дата | CO12: 09.01.2018
AF14: Государственное автономное профессиональное образовательное учреждение Мурманской области "Полярнозоринский энергетический колледж"
A15: Наименование учреждения | CB15: по ОКПО | CO15: 02516481
CB16: ИНН | CO16: 5117100038
CB17: КПП | CO17: 511701001
CB18: по ОКАТО | CO18: 47719000
A19: Единица измерения: руб. | CB19: по ОКЕИ | CO19: 383
A20: Наименование органа, осуществляющего функции и полномочия учредителя | AO20: Министерство образования и науки Мурманской области | CB20: Глава по БК | CO20: 804
A22: Юридический адрес учреждения | AO22: 184230, Мурманская обл., г. Полярные Зори, ул. Курчатова, д. 24
A23: Адрес фактического местонахождения учреждения | AO23: 184230, Мурманская обл., г. Полярные Зори, ул. Курчатова, д. 24
A25: Код по реестру участников бюджетного процесса, а также юридических лиц, не являющихся участниками бюджетного процесса) | BY25: 4 | CC25: 7 | CG25: 2 | CK25: Ц | CO25: 8 | CS25: 1 | CW25: 9 | DA25: 1
A27: 1. Сведения о деятельности учреждения
A29: 1.1. Цели деятельности учреждения: | AI29: Подготовка работников квалифицированного труда со средней профессиональной подготовкой
A30: 1.2. Виды деятельности учреждения: | AI30: - Реализует основные профессиональные образовательные программы среднего профессионального образования
A31: базовой и углубленной подготовки на базе основного общего, среднего (полного) общего образования, в соответствии с лицензией на образовательную деятельность;
A32: - Реализует программы профессиональной подготовки, переподготовки и повышения квалификации специалистов, рабочих кадров и незанятого населения, программы дополнительного профессионального образования, дополнительные образовательные услуги, за пределами основных образовательных программ среднего профессионального образования в соответствии с лицензией на образовательную деятельность.
A33: 1.3. Перечень услуг (работ), осуществляемых, в том числе, на платной основе:
B34: № п/п | G34: Наименование услуги (работы) | AX34: Потребитель (физические или юридические лица) | CB34: Нормативный (правовой) акт
B35: 1 | G35: 2 | AX35: 3 | CB35: 4
B36: 1 | G36: Платная образовательная деятельность | AX36: физические лица | CB36: Лицензия, Устав, Положение об оказании платных образовательных услуг, приказ, сметы (расчеты)
B37: 2 | G37: Предоставление мест в общежитии | AX37: физические лица | CB37: Устав, приказ, договор, калькуляция
B38: 3 | G38: Возмещение коммунальных, эксплуатационных и административно-хозяйственных расходов | AX38: физические лица | CB38: Устав, приказ, договор, калькуляция
B39: 4 | G39: Добровольные пожертвования и целевые взносы | AX39: физические и юридические лица | CB39: Устав, приказ
B40: 5 | G40: Предоставление в аренду объекты недвижимого имущества | AX40: физические и юридические лица | CB40: Устав, приказ
B41: 6 | G41: Иные источники, не противоречащие законодательству | AX41: физические и юридические лица | CB41: Устав, приказ

Sheet Стр.2-3
A1: 2. Финансовые параметры деятельности учреждения
A2: 2.1. Показатели финансового состояния учреждения
A3: на "01" января 2018г.
A4: (последнюю отчетную дату)
A6: Наименование показателя | BU6: Сумма, рублей
B7: I. Нефинансовые активы, всего: | BU7: 198,913,676.89
B8: из них:
B9: 1.1. Общая балансовая стоимость недвижимого государственного имущества, всего | BU9: 177,040,366.79
B10: в том числе:
B11: 1.1.1. Стоимость недвижимого имущества, закрепленного собственником имущества за государственным учреждением на праве оперативного управления | BU11: 177,040,366.79
B12: 1.1.2. Стоимость недвижимого имущества, приобретенного государственным учреждением (подразделением) за счет выделенных собственником имущества учреждения средств | BU12: 0.00
B13: 1.1.3. Стоимость недвижимого имущества, приобретенного государственным учреждением (подразделением) за счет доходов, полученных от платной и иной приносящей доход деятельности | BU13: 0.00
B14: 1.1.4. Стоимость недвижимого имущества, переданного в аренду, безвозмездное пользование | BU14: 0.00
B15: 1.1.5. Остаточная стоимость недвижимого государственного имущества | BU15: 122,990,640.54
B16: 1.2. Общая балансовая стоимость движимого государственного имущества, всего | BU16: 21,873,310.10
B17: в том числе:
B18: 1.2.1. Общая балансовая стоимость особо ценного движимого имущества | BU18: 9,471,433.15
B19: 1.2.2. Стоимость иного движимого имущества, приобретенного государственным учреждением за счет доходов, полученных за счет бюджетных средств | BU19: 10,508,121.88
B20: 1.2.3. Стоимость движимого имущества, приобретенного учреждением за счет доходов, полученных от платной и иной приносящей доход деятельности | BU20: 1,893,755.07
B21: 1.2.4. Стоимость движимого имущества, приобретенного учреждением за счет средств обязательного медицинского страхования | BU21: 0.00
B22: 1.2.5. Остаточная стоимость особо ценного движимого имущества | BU22: 3,146,557.18
B23: II. Финансовые активы, всего
B24: из них:
B25: 2.1. Денежные средства учреждения, всего | BU25: 0.00
B26: в том числе:
B27: 2.1.1. Денежные средства учреждения на счетах | BU27: 0.00
B28: 2.1.2. Денежные средства учреждения, размещенные на депозиты в кредитной организации | BU28: 0.00
B29: 2.2. Иные финансовые инструменты | BU29: 0.00
B30: 2.3. Дебиторская задолженность по доходам, полученным за счет средств областного бюджета, всего | BU30: 0.00
B31: 2.4. Дебиторская задолженность по расходам, всего | BU31: 6,232,929.24
B32: в том числе:
B33: 2.4.1. Дебиторская задолженность по выданным авансам, полученным за счет средств областного бюджета | BU33: 70,140.12
B34: 2.4.2. Дебиторская задолженность по выданным авансам за счет доходов, полученных от платной и иной приносящей доход деятельности | BU34: 0.00
B35: 2.4.3. Дебиторская задолженность по выданным авансам за счет средств обязательного медицинского страхования | BU35: 0.00
B36: III. Обязательства, всего | BU36: 1,384,326.34
B37: из них:
B38: 3.1. Долговые обязательства | BU38: 0.00
B39: 3.2. Кредиторская задолженность: | BU39: 1,345,771.96
B40: в том числе:
B41: 3.2.1. Кредиторская задолженность по принятым обязательствам за счет средств областного бюджета, всего: | BU41: 1,340,627.74
B42: в том числе:
B43: по оплате труда | BU43: 0.00
B44: по начислениям на выплаты по оплате труда | BU44: 273,941.94
B45: по социальным и иным выплатам населению | BU45: 0.00
B46: по расходам на закупку товаров, работ, услуг | BU46: =1066685.8 -> 1,066,685.80
B47: по уплате налогов, сборов и иных платежей | BU47: 0.00
B48: по прочим расходам
B49: 3.2.2. Кредиторская задолженность по принятым обязательствам за счет доходов, полученных от платной и иной приносящей доход деятельности, всего: | BU49: 5,144.22
B50: в том числе:
B51: по оплате труда | BU51: 0.00
B52: по начислениям на выплаты по оплате труда | BU52: 407.43
B53: по социальным и иным выплатам населению | BU53: 0.00
B54: по расходам на закупку товаров, работ, услуг | BU54: 4,736.79
B55: по уплате налогов, сборов и иных платежей | BU55: 0.00
B56: по прочим расходам | BU56: 0.00
B57: 3.2.3. Кредиторская задолженность по принятым обязательствам за счет средств обязательного медицинского страхования, всего: | BU57: 0.00
B58: в том числе:
B59: по оплате труда | BU59: 0.00
B60: по начислениям на выплаты по оплате труда | BU60: 0.00
B61: по социальным и иным выплатам населению | BU61: 0.00
B62: по расходам на закупку товаров, работ, услуг | BU62: 0.00
B63: по уплате налогов, сборов и иных платежей | BU63: 0.00
B64: по прочим расходам | BU64: 0.00
B65: 3.2.4. Просроченная кредиторская задолженность, всего | BU65: 0.00
B66: в том числе:
B67: по оплате труда | BU67: 0.00
B68: по начислениям на выплаты по оплате труда | BU68: 0.00
B69: по социальным и иным выплатам населению | BU69: 0.00
B70: по расходам на закупку товаров, работ, услуг | BU70: 0.00
B71: по уплате налогов, сборов и иных платежей | BU71: 0.00
B72: по прочим расходам | BU72: 0.00

Sheet Стр 4-5
A1: 2.2. Показатели по поступлениям и выплатам учреждения*
A2: на "01" января 2018 г.
A4: Наименование показателя | B4: Код строки | C4: Код по бюджетной классификации РФ | D4: Объем финансового обеспечения, руб. (с точностью до двух знаков после запятой - 0,00)
D5: Всего | E5: в том числе:
E6: Субсидии на финансовое обеспечение выполнения государственного (муниципального) задания из федерального бюджета, бюджета субъекта Российской Федерации (местного бюджета) | F6: Субсидии на финансовое обеспечение выполнения государственного задания из бюджета Федерального фонда обязательного медицинского страхования | G6: Субсидии, предоставляемые в соответствии с абзацем вторым пункта 1 статьи 78.1 БК РФ | H6: Субсидии на осуществление капитальных вложений | I6: Средства обязательного медицинского страхования | J6: Поступления от оказания услуг (выполнения работ) на платной основе и от иной приносящей доход деятельности
J7: всего | K7: из них гранты
A8: 1 | B8: 2 | C8: 3 | D8: 4 | E8: 5 | F8: 5.1 | G8: 6 | H8: 7 | I8: 8 | J8: 9 | K8: 10
A9: Поступления от доходов, всего: | B9: 100 | C9: х | D9: =E9+G9+J9 -> 55,799,989.66 | E9: =E12 -> 44,424,083.66 | G9: =G26 -> 9,690,906.00 | J9: =J11+J12+J27+J28+J29 -> 1,685,000.00
A10: в том числе:
A11: Доходы от собственности | B11: 110 | C11: 804 0704 0000000000 120 120 | D11: =J11 -> 250,000.00 | E11: х | G11: х | H11: х | I11: х | J11: 250,000.00 | K11: х
A12: Доходы от оказания услуг, работ | B12: 120 | C12: 804 0704 0000000000 130 130 | D12: =E12+J12 -> 45,859,083.66 | E12: 44,424,083.66 | G12: х | H12: х | J12: =J20+J21+J22+J23 -> 1,435,000.00
A13: в том числе:
A14: Услуга № 1/работа | B14: 1201 | G14: х | H14: х
A15: Услуга № 2/работа | B15: 1202 | G15: х | H15: х
A16: Услуга № 3/работа | B16: 1203
A17: Услуга № 4/работа | B17: 1204
A18: Средства на уплату налогов, в качестве объекта налогообложения по которым признается имущество учреждения | B18: 1205
A19: Средства на содержание имущества учреждения, не используемого для оказания государственных услуг (выполнения работ) и для общехозяйственных нужд | B19: 1206
A20: Дополнительные платные услуги (образоват. деят-ть) | B20: 1207 | C20: 804 0704 0000000000 130 130 | D20: =J20 -> 450,000.00 | J20: 450,000.00
A21: Дополнительные платные услуги (общежитие) | B21: 1207 | C21: 804 0704 0000000000 130 130 | D21: =J21 -> 800,000.00 | J21: 800,000.00
A22: Дополнительные платные услуги (платное питание) | B22: 1208 | C22: 804 0704 0000000000 130 130 | D22: =J22 -> 165,000.00 | J22: 165,000.00
A23: Дополнительные платные услуги (КМЦ) | B23: 1209 | C23: 804 0704 0000000000 130 130 | D23: =J23 -> 20,000.00 | J23: 20,000.00
A24: Доходы от штрафов, пеней, иных сумм принудительного изъятия | B24: 130 | E24: х | G24: х | H24: х | I24: х | K24: х
A25: Безвозмездные поступления от наднациональных организаций, правительств иностранных государств, международных финансовых организаций | B25: 140 | E25: х | G25: х | H25: х | I25: х | K25: х
A26: Иные субсидии, предоставленные из бюджета | B26: 150 | C26: 804 0704 0000000000 180 180 | D26: =G26 -> 9,690,906.00 | E26: х | G26: 9,690,906.00 | I26: х | J26: х | K26: х
A27: Прочие доходы | B27: 160 | C27: 804 0704 0000000000 180 180 | D27: =J27 -> 0.00 | E27: х | G27: х | H27: х | I27: х | J27: 0.00
A28: Прочие доходы (Стипендия Правительства РФ) | C28: 804 0704 0000000000 180 180 | D28: =J28 -> 0.00 | J28: 0.00 | K28: 0.00
A29: Прочие доходы (Трудоустройство инвалида) | C29: 804 0704 0000000000 180 180 | D29: =J29 -> 0.00 | J29: 0.00 | K29: 0.00
A30: Доходы от операций с активами | B30: 180 | C30: х | E30: х | G30: х | H30: х | I30: х | K30: х
A31: Выплаты по расходам, всего: | B31: 200 | C31: х | D31: =E31+G31+J31 -> 55,799,989.66 | E31: =E36+E37+E39+E42+E48+E49+E57+E58+E59+E60+E61+E64+E66+E68+E70+E51+E38 -> 44,424,083.66 | G31: =G39+G40+G43+G45+G46+G61+G69+G70+G55+G44+G62 -> 9,690,906.00 | J31: =J36+J37+J57+J58+J59+J60+J61+J64+J66+J67+J68+J69+J70+J52+J65+J43+J47+J55+J54+J63 -> 1,685,000.00
A32: в том числе на:
A33: Выплаты персоналу всего: | B33: 210 | D33: =E33+G33+J33 -> 29,549,496.74 | E33: =E36+E37+E39+E42 -> 28,769,498.74 | G33: =G35+G39+G40 -> 519,598.00 | J33: =J35+J36+J37 -> 260,400.00
A34: из них:
A35: оплата труда и начисления на выплаты по оплате труда | B35: 211 | D35: =E35+G35+J35 -> 29,159,497.74 | E35: =E36+E37+E38 -> 28,769,498.74 | G35: =G39+G40 -> 259,799.00 | J35: =J36+J37 -> 130,200.00
A36: оплата труда | C36: 804 0704 0000000000 111 211 | D36: 22,196,389.20 | E36: 22,096,389.20 | J36: 100,000.00
A37: начисления на выплаты по оплате труда | C37: 804 0704 0000000000 119 213 | D37: 6,703,309.54 | E37: 6,673,109.54 | J37: 30,200.00
A38: иные выплаты (командир. расх., компен. мед.осм.) | C38: 804 0704 0000000000 112 212 | D38: 0.00 | E38: 0.00
A39: иные выплаты (командировочные расходы) | C39: 804 0707 0210120110 112 212 | D39: 31,000.00 | G39: 31,000.00
A40: иные выплаты (оплата льготного проезда) | C40: 804 0709 0240213060 112 212 | D40: 228,799.00 | G40: 228,799.00
A41: Социальные и иные выплаты населению, всего | B41: 220 | D41: =D42+D43+D45+D46+D44 -> 1,925,800.00 | E41: =E42 -> 0.00 | G41: =G44+G45+G46 -> 1,925,800.00 | J41: =J43 -> 0.00
A42: из них: пособие работникам по сокращ. | C42: 804 0704 0000000000 321 262 | D42: =E42+G42+J42 -> 0.00 | E42: 0.00
A43: компенсация детям-сиротам | C43: 804 0704 0000000000 321 262 | D43: 0.00
A44: компенсация детям-сиротам | C44: 804 0704 0330200050 321 262 | D44: 1,500,000.00 | G44: 1,500,000.00
A45: компенсация ТЖС | C45: 804 0704 0230200050 321 262 | D45: 250,000.00 | G45: 250,000.00
A46: отдых и оздоровление детей-сирот | C46: 804 0707 0210120110 323 262 | D46: 175,800.00 | G46: 175,800.00
A47: Уплату налогов, сборов и иных платежей, всего | B47: 230 | D47: 3,038,357.00 | E47: =E48+E49 -> 3,025,120.00 | J47: =J49+J48 -> 13,237.00
A48: из них: имущественный, земельный налоги | C48: 804 0704 0000000000 851 290 | D48: 3,038,357.00 | E48: =1873000+1152120 -> 3,025,120.00 | J48: 13,237.00
A49: по акту проверки, пени, штрафы | C49: 804 0704 0000000000 853 290 | D49: 0.00
A50: Безвозмездные перечисления организациям | B50: 240
A51: Прочие расходы (кроме расходов на закупку товаров, работ, услуг) | B51: 250 | D51: =D52+D65+D53+D54+D55 -> 2,791,587.00 | E51: =E52+E53 -> 95,980.00 | G51: =G55 -> 2,675,607.00 | J51: =J52+J54 -> 20,000.00 | K51: =K54 -> 0.00
A52: Прочие расходы (направление студентов на соревнования) | C52: 804 0704 0000000000 113 290 | D52: =E52+J52 -> 42,480.00 | E52: 22,480.00 | J52: 20,000.00
A53: Прочие расходы (госпошлины, аккредитация) | C53: 804 0704 0000000000 853 290 | D53: =E53 -> 73,500.00 | E53: =70000+3500 -> 73,500.00
A54: Выплата стипендии | C54: 804 0704 0000000000 340 290 | D54: =E54+G54+J54 -> 0.00
A55: Выплата стипендии | C55: 804 0704 0210113800 340 290 | D55: =E55+G55+J55 -> 2,675,607.00 | G55: 2,675,607.00
A56: Расходы на закупку товаров, работ, услуг, всего | B56: 260 | D56: =D57+D58+D59+D60+D61+D64+D66+D68+D67+D69+D70+D65+D62+D63 -> 18,884,747.92 | E56: =E57+E58+E59+E61+E64+E66+E68 -> 12,533,484.92 | G56: =G62+G69+G70 -> 4,829,700.00 | J56: =J59+J63+J64+J65+J66+J68+J70 -> 1,521,563.00
A57: Услуги связи | C57: 804 0704 0000000000 244 221 | D57: =E57+G57+J57 -> 140,000.00 | E57: 140,000.00
A58: Транспортные услуги | C58: 804 0704 0000000000 244 222 | D58: 25,000.00 | E58: 25,000.00
A59: Коммунальные услуги | C59: 804 0704 0000000000 244 223 | D59: 8,191,926.73 | E59: 7,878,936.00 | J59: 312,990.73
A60: Арендная плата за пользование имуществом | C60: 804 0704 0000000000 244 224 | D60: 0.00 | E60: 0.00
A61: Работы, услуги по содержанию имущества | C61: 804 0704 0000000000 244 225 | D61: 1,372,988.51 | E61: =503952.48+869036.03 -> 1,372,988.51
A62: Работы, услуги по содержанию имущества | C62: 804 0709 0230200050 244 225 | D62: 2,820,193.00 | G62: 2,820,193.00
A63: Работы, услуги по содержанию имущества | C63: 804 0704 0000000000 244 225 | D63: 753,572.27 | J63: =550000+203572.27 -> 753,572.27
A64: Прочие работы, услуги | C64: 804 0704 0000000000 244 226 | D64: 1,736,490.07 | E64: =1593490.06-56999.99 -> 1,536,490.07 | J64: 200,000.00
A65: Прочие расходы (мероприятия) | C65: 804 0704 0000000000 244 290 | D65: =J65 -> 0.00 | J65: 0.00
A66: Увеличение стоимости основных средств | C66: 804 0704 0000000000 244 310 | D66: =E66+G66+J66 -> 773,442.30 | E66: 673,442.30 | J66: 100,000.00
A67: Увеличение стоимости нематериальных активов | C67: 804 0704 0000000000 244 320 | D67: 0.00
A68: Увеличение стоимости материальных запасов | C68: 804 0704 0000000000 244 340 | D68: =E68+G68+J68 -> 1,061,628.04 | E68: =726628.04+180000 -> 906,628.04 | J68: 155,000.00
A69: Увеличение стоимости материальных запасов (сироты) | C69: 804 0704 0330200050 323 340 | D69: =E69+G69+J69 -> 947,655.00 | G69: 947,655.00
A70: Увеличение стоимости материальных запасов (ТЖС) | C70: 804 0704 0230200050 323 340 | D70: =E70+G70+J70 -> 1,061,852.00 | G70: 1,061,852.00 | J70: 0.00
A71: Поступления финансовых активов, всего: | B71: 300 | C71: х
A72: из них:
A73: Увеличение остатков средств | B73: 310
A74: Прочие поступления | B74: 320
A75: Выбытие финансовых активов, всего | B75: 400
A76: из них:
A77: Уменьшение остатков средств | B77: 410
A78: Прочие выбытия | B78: 420
A79: Остаток средств на начало года | B79: 500 | C79: х | E79: 0.00 | G79: 0.00 | J79: 0.00
A80: Остаток средств на конец года | B80: 600 | C80: х | E80: =E9-E36-E37-E39-E42-E48-E49-E57-E58-E59-E60-E61-E64-E66-E67-E70-E68-E51-E38 -> -0.00 | G80: =G9-G39-G40-G43-G45-G46-G65-G61-G69-G70-G55-G44-G62 -> 0.00 | J80: =J9-J36-J37-J43-J47-J52-J55-J59-J61-J64-J65-J66-J68-J70-J54-J63 -> 0.00
A81: * Заполняется в соответствии с приказом Минфина России от 28.07.2010 № 81н "О требованиях к плану финансово-хозяйственной деятельности государственного (муниципального) учреждения" (в редакции приказа от 29.08.2016 № 142н)

Sheet Стр.6
A1: 2.2.1. Показатели выплат по расходам на закупку товаров, работ, услуг учреждения*
A2: на "01" января 2018 г.
A4: Наименование показателя | B4: Код строки | C4: Год начала закупки | D4: Сумма выплат по расходам на закупку товаров, работ и услуг, руб. (с точностью до двух знаков после запятой - 0,00
D5: Всего на закупки | G5: в том числе:
G6: в соответствии с Федеральным законом от 5 апреля 2013 г. № 44-ФЗ "О контрактной системе в сфере закупок товаров, работ, услуг для обеспечения государственных и муниципальных нужд" | J6: в соответствии с Федеральным законом от 18 июля 2011 г. № 223-ФЗ "О закупках товаров, работ, услуг отдельными видами юридических лиц"
D7: на 2017 г. очередной финансовый год | E7: на 2018 г. 1-ый год планового периода | F7: на 2019 г. 2-ой год планового периода | G7: на 20__г. очередной финансовый год | H7: на 20__г. 1-ый год планового периода | I7: на 20__г. 2-ой год планового периода | J7: на 20__г. очередной финансовый год | K7: на 20__г. 1-ый год планового периода | L7: на 20__г. 2-ой год планового периода
A8: 1 | B8: 2 | C8: 3 | D8: 4 | E8: 5 | F8: 6 | G8: 7 | H8: 8 | I8: 9 | J8: 10 | K8: 11 | L8: 12
A9: Выплаты по расходам на закупку товаров, работ, услуг всего: | B9: 0001 | C9: х
A10: в том числе:
A11: на оплату контрактов заключенных до начала очередного финансового года: | B11: 1001 | C11: х
A13: на закупку товаров работ, услуг по году начала закупки: | B13: 2001
A15: * Заполняется в соответствии с приказом Минфина России от 28.07.2010 № 81н "О требованиях к плану финансово-хозяйственной деятельности государственного (муниципального) учреждения" (в редакции приказа от от 29.08.2016 № 142н)

Sheet Стр 7
A1: 2.3. Сведения о средствах, поступающих во временное распоряжение учреждения*
A2: на "01" января 2018 г.
A3: (очередной финансовый год)
A5: Наименование показателя | B5: Код строки | C5: Сумма (руб., с точностью до двух знаков после запятой - 0,00)
A6: 1 | B6: 2 | C6: 3
A7: Остаток средств на начало года | B7: 010 | C7: 0.00
A8: Остаток средств на конец года | B8: 020 | C8: 0.00
A9: Поступление | B9: 030 | C9: 0.00
A11: Выбытие | B11: 040 | C11: 0.00
A15: 2.4. Справочная информация
A17: Наименование показателя | B17: Код строки | C17: Сумма, рублей
A18: 1 | B18: 2 | C18: 3
A19: Объем публичных обязательств, всего: | B19: 010 | C19: 0.00
A20: Объем бюджетных инвестиций (в части переданных полномочий государственного (муниципального) заказчика в соответствии с Бюджетным кодексом Российской Федерации), всего: | B20: 020 | C20: 0.00
A21: Объем средств, поступивших во временное распоряжение, всего: | B21: 030 | C21: 0.00
A22: * Заполняется в соответствии с приказом Минфина России от 28.07.2010 № 81н "О требованиях к плану финансово-хозяйственной деятельности государственного (муниципального) учреждения" (в редакции приказа от 29.08.2015 № 142н)

Sheet стр 8-10
A1: 3. Сведения и показатели об использовании ресурсов учреждения
A2: на "01" января 2018 г.
A4: Наименование показателя | B4: Единицы измерения | C4: за 2017 г. отчетный финансовый год | D4: на 2018 г. текущий финансовый год | E4: на 2019 г. очередной финансовый год | F4: на 2020 г. 1-ой год планового периода
A5: 1 | B5: 2 | C5: 3 | D5: 4 | E5: 5 | F5: 6
A6: 1. Сведения об уровне оплаты труда работников учреждения | B6: х | C6: х | D6: х | E6: х | F6: х
A7: 1.1. Фонд оплаты труда, всего | B7: тыс. руб. | C7: 24,655 | D7: =D10+D12+D14 -> 25,777 | E7: =E10+E12+E14 -> 26,935 | F7: =F10+F12+F14 -> 28,163
A8: из них: выплаты стимулирующего характера | B8: тыс. руб. | C8: 6321.7 | D8: 6574.6 | E8: 6837.6 | F8: 7111.1
A9: в том числе:
A10: 1.1.1.Фонд оплаты труда руководителей учреждения и их заместителей | B10: тыс. руб. | C10: 3105.8 | D10: 3230 | E10: 3359.2 | F10: 3493.6
A11: из них: выплаты стимулирующего характера | B11: тыс. руб. | C11: 693.6 | D11: 721.3 | E11: 750.2 | F11: 780.2
A12: 1.1.2. Фонд оплаты труда прочих работников учреждения | B12: тыс. руб. | C12: 10303.1 | D12: 10715.2 | E12: 11143.8 | F12: 11589.6
A13: из них: выплаты стимулирующего характера | B13: тыс. руб. | C13: 2700.1 | D13: 2808.1 | E13: 2920.4 | F13: 3037
A14: 1.2. Фонд оплаты труда, отдельных категорий работников бюджетной сферы, повышение оплаты труда которых предусмотрено указами Президента РФ, всего | B14: тыс. руб. | C14: 11246.2 | D14: 11832 | E14: 12432 | F14: 13080
A15: в том числе по категориям работников:
B16: тыс. руб.
A17: 1.3. Среднесписочная численность работников учреждения | B17: чел. | C17: 56 | D17: 56 | E17: 56 | F17: 56
A18: в том числе:
A19: 1.3.1. Среднесписочная численность руководителей учреждения и их заместителей | B19: чел. | C19: 3 | D19: 3 | E19: 3 | F19: 3
A20: 1.3.2. Среднесписочная численность прочих работников учреждения | B20: чел. | C20: 33 | D20: 33 | E20: 36 | F20: 36
A21: 1.4. Среднесписочная численность работников учреждения с которыми заключены эффективные контракты | B21: чел. | C21: 56 | D21: 56 | E21: 58 | F21: 58
A22: в том числе:
A23: 1.4.1. Среднесписочная численность руководителей учреждения и их заместителей с которыми заключены эффективные контракты | B23: чел. | C23: 3 | D23: 3 | E23: 3 | F23: 3
A24: 1.4.2. Среднесписочная численность прочих работников учреждения с которыми заключены эффективные контракты | B24: чел. | C24: 33 | D24: 33 | E24: 33 | F24: 33
A25: 1.5. Среднесписочная численность, отдельных категорий работников бюджетной сферы, повышение оплаты труда которых предусмотрено указами Президента РФ, всего | B25: чел. | C25: 20 | D25: 20 | E25: 20 | F25: 20
A26: в том числе по категориям работников:
A27: 1.6. Средняя заработная плата, необходимая для реализации указов Президента РФ, предусматривающих повышение оплаты труда отдельных категорий работников бюджетной сферы | B27: руб. | C27: 46600 | D27: 49300 | E27: 51800 | F27: 54500
A28: 1.7. Средняя заработная плата, сложившаяся/прогнозируемая в отчетном периоде | B28: руб. | C28: х | D28: х | E28: х | F28: х
A29: в том числе по категориям работников, повышение оплаты труда которых предусмотрено указами Президента РФ: | B29: руб. | C29: 46600 | D29: 49300 | E29: 51800 | F29: 54500
A30: 1.8. Отношение средней заработной платы руководителей учреждения и их заместителей к средней заработной плате работников учреждения | B30: % | C30: 269 | D30: 269 | E30: 269 | F30: 269
A31: 1.9. Отношение средней заработной платы, сложившейся/прогнозируемой в отчетном периоде к средней заработной плате, необходимой для реализации указов Президента РФ | B31: % | C31: х | D31: х | E31: х | F31: х
A32: в том числе по категориям работников, повышение оплаты труда которых предусмотрено указами Президента РФ: | C32: 100 | D32: 100 | E32: 100 | F32: 100
B33: %
A34: 2. Сведения об использовании имущества учреждения | B34: х | C34: х | D34: х | E34: х | F34: х
A35: 2.1. Общая площадь объектов недвижимого имущества, закрепленная за учреждением | B35: м² | C35: 10533.7 | D35: 10527.9 | E35: 10527.9 | F35: 10527.9
A36: в том числе:
A37: 2.1.1. Площадь недвижимого имущества в безвозмездном пользовании, всего | B37: м²
A38: 2.1.2.Площадь недвижимого имущества в безвозмездном пользовании, не используемая для выполнения государственного задания | B38: м²
A39: 2.1.3. Площадь недвижимого имущества, переданная в аренду | B39: м² | C39: 0 | D39: =36.1+67.2 -> 103.3 | E39: 103.3 | F39: 103.3
A40: 2.2. Затраты на содержание имущества учреждения | B40: тыс. руб.
A41: в том числе:
A42: 2.2.1. Затраты на содержание имущества учреждения, не используемого для выполнения государственного задания | B42: тыс. руб.
A43: 2.3. Коэффициент износа основных средств (отношение величины износа основных средств на конец отчетного периода к стоимости основных средств учреждения на конец отчетного периода) | B43: ед.
A44: 2.4. Коэффициент обновления основных средств (отношение стоимости основных средств поступивших за отчетный период к общей стоимости основных средств учреждения на конец отчетного периода) | B44: ед.
A45: 2.5. Коэффициенты ремонта зданий, характеризующие величину фактических расходов на капитальный ремонт зданий, приходящуюся на один рубль балансовой стоимости основных средств (в том числе за счет бюджетных средств) | B45: ед.
A46: в том числе:
B47: ед.
A48: 3. Показатели характеризующие объем и качество оказываемой услуги | C48: 13 | D48: 13 | E48: 13 | F48: 13
A49: 3.1. Общее количество государственных услуг, оказываемых учреждением | B49: ед.
A50: в том числе:
A51: 3.1.1. Количество государственных услуг, в отношении которых нормативно установлены требования к качеству их оказания | B51: ед. | C51: 13 | D51: 13 | E51: 13 | F51: 13
A52: 4. Показатели открытости и прозрачности деятельности
A53: 4.1. Обеспечено размещение (актуализация) сведений об учреждении на официальном сайте в сети Интернет www.bus.gov.ru | B53: да-1/нет-0 | C53: 1 | D53: 1 | E53: 1 | F53: 1
A54: 4.2. Обеспечено размещение в сети Интернет информации о результатах деятельности учреждения за отчетный год | B54: да-1/нет-1 | C54: 1 | D54: 1 | E54: 1 | F54: 1

Sheet стр.11
A1: 4. Перечень мероприятий по повышению эффективности деятельности учреждения
A2: на " " 20 г.
A4: Наименование мероприятия | B4: Сроки проведения | C4: Ожидаемый результат реализации | E4: Затраты, необходимые на проведение мероприятия, тыс. руб
A5: 1. Повышение эффективности управления и кадрового потенциала учреждения
A7: 2. Повышение эффективности управления государственной собственностью
A9: 3. Повышение качества предоставления государственных услуг
A11: 4. Направления оптимизации расходов учреждения
A13: Итого: | B13: х | C13: х
A16: Руководитель учреждения | E16: О.И. Макашина
C17: (подпись) | E17: (расшифровка подписи)
A18: Руководитель финансово-экономической | E18: О.А. Федорова
A19: службы учреждения | C19: (подпись) | E19: (расшифровка подписи)
A20: тел. (81532) 74763
A21: на "01" января 2018 г.

Sheet стр 12
BL2: УТВЕРЖДАЮ
BL3: Заместитель министра образования и науки Мурманской области
BL4: (наименование должности лица, утверждающего документ; наименование органа,
BL5: Министерство образования и науки Мурманской области
BL6: осуществляющего функции и полномочия учредителя (учреждения))
DU7: Е.И. Панькова
BL8: (подпись) | DU8: (расшифровка подписи)
BL9: " | BR9: " | CQ9: 20 | CX9: г.
A11: СВЕДЕНИЯ
A12: ОБ ОПЕРАЦИЯХ С ЦЕЛЕВЫМИ СУБСИДИЯМИ, ПРЕДОСТАВЛЕННЫМИ ГОСУДАРСТВЕННОМУ (МУНИЦИПАЛЬНОМУ) УЧРЕЖДЕНИЮ НА 20__18__г.
EV13: КОДЫ
ET14: Форма по ОКУД | EV14: 0501016
AM15: от " | AS15: " | BR15: 20 | BY15: г. | ET15: Дата
A16: Государственное | AK16: Государственное автономное профессиональное образовательное учреждение Мурманской области "Полярнозоринский энергетичекий колледж" | EV16: 02516481
A17: учреждение | ET17: по ОКПО
AK19: ИНН/КПП | AU19: 5117100038 / 511701001 | ET19: Дата представления предыдущих Сведений
A21: Наименование бюджета | AK21: Бюджет Мурманской области | ET21: по ОКТМО | EV21: 4700000
A22: Наименование органа, осуществляющего | AK22: Министерство образования и науки Мурманской области
A23: функции и полномочия учредителя | ET23: Глава по БК | EV23: 804
A24: Наименование органа, осуществляющего | AK24: Управление Федерального казначейства по Мурманской области | EV24: 27946739
A25: ведение лицевого счета | ET25: по ОКПО
A26: Единица измерения: руб. (с точностью до второго десятичного знака) | ET26: по ОКЕИ | EV26: 383
ET27: по ОКВ
L28: (наименование иностранной валюты)
EH29: Остаток средств на начало года
A31: Наименование субсидии | AA31: Код субсидии | AK31: Код по бюджетной классификации Российской Федерации | AU31: Код объекта ФАИП | BE31: Разрешенный к использованию | CJ31: Суммы возврата дебиторской задолженности прошлых лет | DL31: Планируемые
BE32: остаток субсидии прошлых лет
BW33: на начало 20 | CA33: г.
BE35: код | BO35: сумма | CJ35: код | CX35: сумма | DL35: поступления | EJ35: выплаты
A36: 1 | AA36: 2 | AK36: 3 | AU36: 4 | BE36: 5 | BO36: 6 | CJ36: 7 | CX36: 8 | DL36: 9 | EJ36: 10
A37: Выплата стипендии обучающимся по очной форме обучения в учреждениях среднего профессионального образования | AA37: 0210100023 | AK37: 180 | DL37: =EJ38 -> 2,675,607.00
A38: Выплата стипендии обучающимся по очной форме обучения в учреждениях среднего профессионального образования | AA38: 0210100023 | AK38: 340 | EJ38: 2,675,607.00
A39: Отдых и оздоровление детей-сирот, детей, оставшихся без попечения родителей, обучающихся государственных областных профессиональных организаций | AA39: 0210100006 | AK39: 180 | DL39: =EJ40+EJ41 -> 206,800.00
A40: Отдых и оздоровление детей-сирот, детей, оставшихся без попечения родителей, обучающихся государственных областных профессиональных организаций | AA40: 0210100006 | AK40: 112 | EJ40: 31,000.00
A41: Отдых и оздоровление детей-сирот, детей, оставшихся без попечения родителей, обучающихся государственных областных профессиональных организаций | AA41: 0210100006 | AK41: 323 | EJ41: 175,800.00
A42: Обеспечение комплексной безопасности организаций образования | AA42: 0230200014 | AK42: 180 | DL42: =EJ43+EJ44 -> 2,820,193.00
A43: Обеспечение комплексной безопасности организаций образования | AA43: 0230200014 | AK43: 244 | EJ43: 2,820,193.00
A44: Предоставление бесплатного питания отдельным категориям обучающихся учреждений среднего профессионального образования | AA44: 0230200024 | AK44: 180 | DL44: =EJ45+EJ46 -> 1,311,852.00
A45: Предоставление бесплатного питания отдельным категориям обучающихся учреждений среднего профессионального образования | AA45: 0230200024 | AK45: 321 | EJ45: 250,000.00
A46: Предоставление бесплатного питания отдельным категориям обучающихся учреждений среднего профессионального образования | AA46: 0230200024 | AK46: 323 | EJ46: 1,061,852.00
A47: Оплата стоимости проезда и провоза багажа к месту использования отпуска (отдыха) и обратно | AA47: 0240200016 | AK47: 180 | DL47: =EJ48 -> 228,799.00
A48: Оплата стоимости проезда и провоза багажа к месту использования отпуска (отдыха) и обратно | AA48: 0240200016 | AK48: 112 | EJ48: 228,799.00
A49: Содержание детей-сирот, детей, оставшихся без попечения родителей, лиц из их числа в государственных областных образовательных учреждениях профессионального образования | AA49: 0330200010 | AK49: 180 | DL49: =EJ50+EJ51 -> 2,447,655.00
A50: Содержание детей-сирот, детей, оставшихся без попечения родителей, лиц из их числа в государственных областных образовательных учреждениях профессионального образования | AA50: 0330200010 | AK50: 321 | EJ50: 1,500,000.00
A51: Содержание детей-сирот, детей, оставшихся без попечения родителей, лиц из их числа в государственных областных образовательных учреждениях профессионального образования | AA51: 0330200010 | AK51: 323 | EJ51: 947,655.00
BM52: Всего | CJ52: х | DL52: =DL37+DL49+DL39+DL44+DL47+DL42 -> 9,690,906.00 | EJ52: =EJ38+EJ50+EJ51+EJ40+EJ41+EJ45+EJ46+EJ48+EJ43 -> 9,690,906.00
ET54: Номер страницы | EV54: 3
A55: Руководитель | AD55: Макашина О.И. | ET55: Всего страниц | EV55: 3
N56: (подпись) | AD56: (расшифровка подписи)
A57: Руководитель финан- | BT57: ОТМЕТКА ОРГАНА, ОСУЩЕСТВЛЯЮЩЕГО ВЕДЕНИЕ ЛИЦЕВОГО СЧЕТА,
A58: сово-экономи- | BT58: О ПРИНЯТИИ НАСТОЯЩИХ СВЕДЕНИЙ
A59: ческой службы | AD59: Федорова О.А. | BU59: Ответственный
N60: (подпись) | AD60: (расшифровка подписи) | BU60: исполнитель
A61: Ответственный | CH61: (должность) | CV61: (подпись) | DF61: (расшифровка подписи) | DY61: (телефон)
A62: исполнитель | N62: Гл. бухгалтер | AK62: Федорова О.А. | BD62: (81532)74763 | BU62: " | CB62: " | DA62: 20 | DH62: г.
N63: (должность) | Z63: (подпись) | AK63: (расшифровка подписи) | BD63: (телефон)
A64: " | H64: " | AC64: 20 | AJ64: г.
A67: * Заполняется в порядке, установленном приказом Минфина России от 28.07.2010 № 81н "О требованиях к плану финансово-хозяйственной деятельности государственного (муниципального) учреждения" ( в редакции приказа от 24.09.2015 №140н)

Sheet 13
A1: Расчеты (обоснования) к плану финансово-хозяйственной деятельности государственного (муниципального) учреждения*
A3: 1. Расчеты (обоснования) выплат персоналу (строка 210)
A5: Код видов расходов | X5: 111
A7: Источник финансового обеспечения | AP7: 4 - Субсидия на выполнение государственного задания
A9: 1.1. Расчеты (обоснования) расходов на оплату труда
A11: № п/п | G11: Должность, группа должностей | Y11: Установленная численность, единиц | AO11: Среднемесячный размер оплаты труда на одного работника, руб. | DI11: Ежемесячная надбавка к должностному окладу, % | DY11: Районный коэффициент | EO11: Фонд оплаты труда в год, руб. (гр. 3 x гр. 4 x (1 + гр. 8 / 100) x гр. 9 x 12)
AO12: всего | BF12: в том числе:
BF13: по должностному окладу | BX13: по выплатам компенсационного характера | CQ13: по выплатам стимулирующего характера
A14: 1 | G14: 2 | Y14: 3 | AO14: 4 | BF14: 5 | BX14: 6 | CQ14: 7 | DI14: 8 | DY14: 9 | EO14: 10
A15: 1. | G15: Преподаватель | Y15: 1.8 | AO15: =BF15+BX15+CQ15 -> 43,181.28 | BF15: 16,544.55 | BX15: =(BF15+CQ15)*0.8 -> 19,191.68 | CQ15: =BF15*DI15/100 -> 7,445.05 | DI15: 45.00 | DY15: =(BF15+CQ15)*0.5 -> 11,994.80 | EO15: =(1*(AO15+DY15))*12 -> 662,112.89
Y16: 1.3 | AO16: =BF16+BX16+CQ16 -> 28,990.49 | BF16: 10,737.22 | BX16: =(BF16+CQ16)*0.8 -> 12,884.66 | CQ16: =BF16*DI16/100 -> 5,368.61 | DI16: 50.00 | DY16: =(BF16+CQ16)*0.5 -> 8,052.92 | EO16: =(1*(AO16+DY16))*12 -> 444,520.91
Y17: 1.5 | AO17: 47,073.16 | BF17: 14,943.86 | BX17: =(BF17+CQ17)*0.8 -> 20,921.40 | CQ17: 11,207.90 | DI17: 75.00 | DY17: 13,075.88 | EO17: 721,788.44
Y18: 1.4 | AO18: 36,288.43 | BF18: 13,440.16 | BX18: 16,128.19 | CQ18: =BF18*DI18/100 -> 6,720.08 | DI18: 50.00 | DY18: 10,080.12 | EO18: 556,422.62
Y19: 1.3 | AO19: 36,286.51 | BF19: 10,610.09 | BX19: 16,127.34 | CQ19: 9,549.08 | DI19: 90.00 | DY19: 10,079.59 | EO19: 556,393.12
Y20: 1.3 | AO20: 27,663.11 | BF20: 11,821.84 | BX20: 12,294.71 | CQ20: 3,546.55 | DI20: 30.00 | DY20: 7,684.20 | EO20: 424,167.62
Y21: 1.5 | AO21: 48,491.01 | BF21: 14,966.36 | BX21: 21,551.56 | CQ21: 11,973.09 | DI21: 80.00 | DY21: 13,469.72 | EO21: 743,528.76
Y22: 1.5 | AO22: 35,114.50 | BF22: 15,240.67 | BX22: 15,606.45 | CQ22: 4,267.39 | DI22: 28.00 | DY22: 9,754.03 | EO22: 538,422.39
Y23: 1.5 | AO23: 40,796.68 | BF23: 15,109.88 | BX23: 18,131.86 | CQ23: 7,554.94 | DI23: 50.00 | DY23: 11,332.41 | EO23: 625,549.03
Y24: 1.9 | AO24: 51,868.85 | BF24: 17,464.26 | BX24: 23,052.82 | CQ24: 11,351.77 | DI24: 65.00 | DY24: 14,408.01 | EO24: 795,322.40
Y25: 1.3 | AO25: 28,222.80 | BF25: 10,452.89 | BX25: 12,543.47 | CQ25: 5,226.45 | DI25: 50.00 | DY25: 7,839.67 | EO25: 432,749.65
Y26: 1.2 | AO26: 18,954.16 | BF26: 9,156.60 | BX26: 8,424.07 | CQ26: 1,373.49 | DI26: 15.00 | DY26: 5,265.05 | EO26: 290,630.48
Y27: 1.4 | AO27: 33,391.07 | BF27: 11,594.12 | BX27: 14,840.47 | CQ27: 6,956.47 | DI27: 60.00 | DY27: 9,275.30 | EO27: 511,996.34
Y28: 1.1 | AO28: 15,873.44 | BF28: 8,016.89 | BX28: 7,054.86 | CQ28: 801.69 | DI28: 10.00 | DY28: 4,409.29 | EO28: 243,392.78
Y29: 1.6 | AO29: 49,420.54 | BF29: 14,450.45 | BX29: 21,964.68 | CQ29: 13,005.41 | DI29: 90.00 | DY29: 13,727.93 | EO29: 757,781.60
Y30: 1.6 | AO30: =BF30+BX30+CQ30 -> 44,018.90 | BF30: 13,586.08 | BX30: =(BF30+CQ30)*0.8 -> 19,563.96 | CQ30: =BF30*DI30/100 -> 10,868.86 | DI30: 80.00 | DY30: =(BF30+CQ30)*0.5 -> 12,227.47 | EO30: 674,956.45
Y31: 1.2 | AO31: =BF31+BX31+CQ31 -> 21,121.33 | BF31: 9,489.00 | BX31: =(BF31+CQ31)*0.8 -> 9,387.26 | CQ31: =BF31*DI31/100+1296.17 -> 2,245.07 | DI31: 10.00 | DY31: 5,867.04 | EO31: =((AO31+DY31))*12 -> 323,860.33
Y32: 1.4 | AO32: =BF32+BX32+CQ32 -> 19,577.94 | BF32: 9,887.85 | BX32: =(BF32+CQ32)*0.8 -> 8,701.31 | CQ32: =BF32*DI32/100 -> 988.79 | DI32: 10.00 | DY32: =(BF32+CQ32)*0.5 -> 5,438.32 | EO32: =(1.1*(AO32+DY32))*12 -> 330,214.64
Y33: =SUM(Y15:AN32) -> 25.8 | AO33: =SUM(AO15:BE32) -> 626,334.19 | BF33: =SUM(BF15:BW32) -> 227,512.77 | BX33: =SUM(BX15:CP32) -> 278,370.75 | CQ33: =SUM(CQ15:DH32) -> 120,450.67 | DY33: =SUM(DY15:EN31) -> 168,543.40 | EO33: =SUM(EO13:FE32) -> 9,633,820.46
A34: 2. | G34: Мастер производственного обучения | Y34: 1 | AO34: =BF34+BX34+CQ34 -> 24,579.54 | BF34: 7,187.00 | BX34: =(BF34+CQ34)*0.8 -> 10,924.24 | CQ34: =BF34*DI34/100 -> 6,468.30 | DI34: 90.00 | DY34: =(BF34+CQ34)*0.5 -> 6,827.65 | EO34: =(Y34*(AO34+DY34))*12 -> 376,886.28
Y35: 1.7 | AO35: 38,144.48 | BF35: 7,576.00 | BX35: =(BF35+CQ35)*0.8 -> 16,953.10 | CQ35: =BF35*DI35/100+5281.78 -> 13,615.38 | DI35: 110.00 | DY35: 10,595.69 | EO35: =((AO35+DY35))*12 -> 584,882.09
Y36: 1.5 | AO36: 37,046.03 | BF36: 8,614.00 | BX36: 16,464.90 | CQ36: =BF36*DI36/100+4214.53 -> 11,967.13 | DI36: 90.00 | DY36: 10,290.57 | EO36: =((AO36+DY36))*12 -> 568,039.19
Y37: 1 | AO37: =BF37+BX37+CQ37 -> 20,698.56 | BF37: 7,187.00 | BX37: =(BF37+CQ37)*0.8 -> 9,199.36 | CQ37: =BF37*DI37/100 -> 4,312.20 | DI37: 60.00 | DY37: =(BF37+CQ37)*0.5 -> 5,749.60 | EO37: =(Y37*(AO37+DY37))*3 -> 79,344.48
Y38: =SUM(Y34:AN37) -> 5.2 | AO38: =SUM(AO34:BE36) -> 99,770.06 | BF38: =SUM(BF34:BW37) -> 30,564.00 | BX38: =SUM(BX34:CP36) -> 44,342.25 | CQ38: =SUM(CQ34:DH36) -> 32,050.81 | DY38: =SUM(DY34:EN36) -> 27,713.91 | EO38: =SUM(EO34:FE37) -> 1,609,152.04
A39: 3. | G39: Заведующий УО | Y39: 1 | AO39: =BF39+BX39+CQ39 -> 32,319.00 | BF39: 9,975.00 | BX39: =(BF39+CQ39)*0.8 -> 14,364.00 | CQ39: =BF39*DI39/100 -> 7,980.00 | DI39: 80.00 | DY39: =(BF39+CQ39)*0.5 -> 8,977.50 | EO39: =(Y39*(AO39+DY39))*12 -> 495,558.00
A40: 4. | G40: Заведующий УВО | Y40: 1 | AO40: 31,959.90 | BF40: 9,975.00 | BX40: 14,204.40 | CQ40: =BF40*DI40/100 -> 7,780.50 | DI40: 78.00 | DY40: 8,877.75 | EO40: 490,051.80
A41: 5. | G41: Заведующий практикой | Y41: 1 | AO41: 25,985.52 | BF41: 8,492.00 | BX41: 11,549.12 | CQ41: 5,944.40 | DI41: 70.00 | DY41: 7,218.20 | EO41: 398,444.64
A42: 6. | G42: Социалный педагог | Y42: 1 | AO42: 24,033.06 | BF42: 8,614.00 | BX42: 10,681.36 | CQ42: 4,737.70 | DI42: 55.00 | DY42: 6,675.85 | EO42: 368,506.92
A43: 7. | G43: Педагог-библиотекарь | Y43: 0.5 | AO43: 16,247.88 | BF43: 8,206.00 | BX43: 7,221.28 | CQ43: 820.60 | DI43: 10.00 | DY43: 4,513.30 | EO43: 124,567.08
G44: Педагог-организатор | Y44: 1 | AO44: =BF44+BX44+CQ44 -> 16,632.00 | BF44: 8,400.00 | BX44: =(BF44+CQ44)*0.8 -> 7,392.00 | CQ44: =BF44*DI44/100 -> 840.00 | DI44: 10.00 | DY44: =(BF44+CQ44)*0.5 -> 4,620.00 | EO44: =(Y44*(AO44+DY44))*12 -> 255,024.00
A45: 8. | G45: Педагог-психолог | Y45: 0.5 | AO45: 16,247.88 | BF45: 8,206.00 | BX45: 7,221.28 | CQ45: 820.60 | DI45: 10.00 | DY45: 4,513.30 | EO45: =(Y45*(AO45+DY45))*12 -> 124,567.08
Y46: =SUM(Y39:AN45) -> 6 | AO46: =SUM(AO39:BE45) -> 163,425.24 | BF46: =SUM(BF39:BW45) -> 61,868.00 | BX46: =SUM(BX39:CP45) -> 72,633.44 | CQ46: =SUM(CQ39:DH45) -> 28,923.80 | DY46: =SUM(DY39:EN45) -> 45,395.90 | EO46: =SUM(EO39:FE45) -> 2,256,719.52
A47: 9. | G47: Директор | Y47: 1 | AO47: =BF47+BX47+CQ47 -> 0.00 | BF47: 0.00 | BX47: =(BF47+CQ47)*0.8 -> 0.00 | CQ47: =BF47*DI47/100 -> 0.00 | DI47: 0.00 | DY47: =(BF47+CQ47)*0.5 -> 0.00 | EO47: =(Y47*(AO47+DY47))*12 -> 0.00
A48: 10. | G48: Зам. директора по ТО | Y48: 1 | AO48: =BF48+BX48+CQ48 -> 65,645.44 | BF48: 20,149.00 | BX48: =(BF48+CQ48)*0.8 -> 29,175.75 | CQ48: =BF48*DI48/100 -> 16,320.69 | DI48: 81.00 | DY48: =(BF48+CQ48)*0.5 -> 18,234.85 | EO48: =(Y48*(AO48+DY48))*12 -> 1,006,563.44
A49: 11. | G49: Зам. директора по УПР | Y49: 1 | AO49: 76,163.22 | BF49: 20,149.00 | BX49: 33,850.32 | CQ49: 22,163.90 | DI49: 110.00 | DY49: 21,156.45 | EO49: 1,167,836.04
A50: 12. | G50: Главный бухгалтер | Y50: 1 | AO50: 60,624.17 | BF50: 20,412.18 | BX50: 26,944.08 | CQ50: 13,267.92 | DI50: 65.00 | DY50: 16,840.05 | EO50: 929,570.68
Y51: =SUM(Y47:AN50) -> 4 | AO51: =SUM(AO47:BE50) -> 202,432.84 | BF51: =SUM(BF47:BW50) -> 60,710.18 | BX51: =SUM(BX47:CP50) -> 89,970.15 | CQ51: =SUM(CQ47:DH50) -> 51,752.51 | DY51: =SUM(DY47:EN50) -> 56,231.34 | EO51: =SUM(EO47:FE50) -> 3,103,970.16
A52: 13. | G52: Инженер по ОЭ и РЗ и С | Y52: 1 | AO52: =BF52+BX52+CQ52 -> 25,162.38 | BF52: 8,223.00 | BX52: =(BF52+CQ52)*0.8 -> 11,183.28 | CQ52: =BF52*DI52/100 -> 5,756.10 | DI52: 70.00 | DY52: =(BF52+CQ52)*0.5 -> 6,989.55 | EO52: =(Y52*(AO52+DY52))*12 -> 385,823.16
A53: 14. | G53: Специалист по ОТ | Y53: 1 | AO53: 26,549.46 | BF53: 7,763.00 | BX53: 11,799.76 | CQ53: 6,986.70 | DI53: 90.00 | DY53: 7,374.85 | EO53: 407,091.72
A54: 15. | G54: Юрисконсульт | Y54: 1 | AO54: 19,109.52 | BF54: 7,864.00 | BX54: 8,493.12 | CQ54: 2,752.40 | DI54: 35.00 | DY54: 5,308.20 | EO54: 293,012.64
A55: 16. | G55: Документовед | Y55: 1 | AO55: 19,562.76 | BF55: 7,763.00 | BX55: 8,694.56 | CQ55: 3,105.20 | DI55: 40.00 | DY55: 5,434.10 | EO55: 299,962.32
A56: 17. | G56: Специалист по кадрам | Y56: 0.5 | AO56: =BF56+BX56+CQ56 -> 6,682.50 | BF56: 3,375.00 | BX56: =(BF56+CQ56)*0.8 -> 2,970.00 | CQ56: =BF56*DI56/100 -> 337.50 | DI56: 10.00 | DY56: =(BF56+CQ56)*0.5 -> 1,856.25 | EO56: =(1*(AO56+DY56))*12 -> 102,465.00
A57: 18. | G57: Секретарь УЧ | Y57: 1 | AO57: 25,112.79 | BF57: 9,001.00 | BX57: 11,161.24 | CQ57: 4,950.55 | DI57: 55.00 | DY57: 6,975.78 | EO57: 385,062.78
A58: 19. | G58: Программист | Y58: 1 | AO58: 19,279.20 | BF58: 8,033.00 | BX58: =(BF58+CQ58)*0.6 -> 7,229.70 | CQ58: 4,016.50 | DI58: 50.00 | DY58: 6,024.75 | EO58: 303,647.40
A59: 20. | G59: Бухгалтер | Y59: 1 | AO59: 25,060.86 | BF59: 8,438.00 | BX59: 11,138.16 | CQ59: 5,484.70 | DI59: 65.00 | DY59: 6,961.35 | EO59: 384,266.52
A60: 21. | G60: Бухгалтер | Y60: 1 | AO60: 21,384.00 | BF60: 7,425.00 | BX60: 9,504.00 | CQ60: 4,455.00 | DI60: 60.00 | DY60: 5,940.00 | EO60: 327,888.00
A61: 22. | G61: Бухгалтер | Y61: 1 | AO61: 23,048.64 | BF61: 8,003.00 | BX61: 10,243.84 | CQ61: 4,801.80 | DI61: 60.00 | DY61: 6,402.40 | EO61: 353,412.48
A62: 23. | G62: Водитель | Y62: 1 | AO62: =BF62+BX62+CQ62 -> 19,221.70 | BF62: 7,072.00 | BX62: =(BF62+CQ62)*0.8 -> 8,542.98 | CQ62: =BF62*DI62/100 -> 3,606.72 | DI62: 51.00 | DY62: =(BF62+CQ62)*0.5 -> 5,339.36 | EO62: =(Y62*(AO62+DY62))*12 -> 294,732.67
A63: 24. | G63: Гардеробщик | Y63: 1 | AO63: 14,058.00 | BF63: 6,248.00 | BX63: 6,248.00 | CQ63: 1,562.00 | DI63: 25.00 | DY63: 3,905.00 | EO63: 215,556.00
A64: 25. | G64: Сторож | Y64: 1 | AO64: 15,160.50 | BF64: 6,738.00 | BX64: 6,738.00 | CQ64: 1,684.50 | DI64: 25.00 | DY64: 4,211.25 | EO64: 232,461.00
A65: 26. | G65: Сторож | Y65: 1 | AO65: 13,781.25 | BF65: 6,125.00 | BX65: 6,125.00 | CQ65: 1,531.25 | DI65: 25.00 | DY65: 3,828.13 | EO65: =(1*(AO65+DY65))*12 -> 211,312.50
A66: 27. | G66: Сторож | Y66: 1 | AO66: 15,160.50 | BF66: 6,738.00 | BX66: 6,738.00 | CQ66: 1,684.50 | DI66: 25.00 | DY66: 4,211.25 | EO66: 232,461.00
A67: 28. | G67: Сторож | Y67: 1 | AO67: 14,332.50 | BF67: 6,370.00 | BX67: 6,370.00 | CQ67: 1,592.50 | DI67: 25.00 | DY67: 3,981.25 | EO67: 219,765.00
A68: 28. | G68: Сторож | Y68: 1 | AO68: =BF68+BX68+CQ68 -> 14,058.00 | BF68: 6,248.00 | BX68: =(BF68+CQ68)*0.8 -> 6,248.00 | CQ68: =BF68*DI68/100 -> 1,562.00 | DI68: 25.00 | DY68: =(BF68+CQ68)*0.5 -> 3,905.00 | EO68: =(Y68*(AO68+DY68))*12 -> 215,556.00
A69: 29. | G69: Уборщик служ. помещ. | Y69: 1 | AO69: 14,001.75 | BF69: 6,125.00 | BX69: 6,223.00 | CQ69: 1,653.75 | DI69: 27.00 | DY69: 3,889.38 | EO69: 214,693.50
A70: 29. | G70: Уборщик произв. помещ. | Y70: 1 | AO70: 14,311.51 | BF70: 6,738.00 | BX70: 6,360.67 | CQ70: 1,212.84 | DI70: 18.00 | DY70: 3,975.42 | EO70: 219,443.18
A71: 30. | G71: Уборщик служ. помещ. | Y71: 1 | AO71: 13,009.50 | BF71: 6,125.00 | BX71: 5,782.00 | CQ71: 1,102.50 | DI71: 18.00 | DY71: 3,613.75 | EO71: 199,479.00
A72: 31. | G72: Уборщик служ. помещ. | Y72: 1 | AO72: 14,001.75 | BF72: 6,125.00 | BX72: 6,223.00 | CQ72: 1,653.75 | DI72: 27.00 | DY72: 3,889.38 | EO72: 214,693.50
A73: 32. | G73: Дежурный по общежитию | Y73: 1 | AO73: 14,099.08 | BF73: 6,527.35 | BX73: 6,266.26 | CQ73: 1,305.47 | DI73: 20.00 | DY73: 3,916.41 | EO73: =(1*(AO73+DY73))*12 -> 216,185.83
A74: 33. | G74: Дежурный по общежитию | Y74: 1 | AO74: 14,082.56 | BF74: 6,803.17 | BX74: 6,258.92 | CQ74: 1,020.48 | DI74: 15.00 | DY74: 3,911.82 | EO74: 215,932.62
A75: 34. | G75: Дежурный по общежитию | Y75: 2 | AO75: 14,727.83 | BF75: 7,438.30 | BX75: 6,545.70 | CQ75: 743.83 | DI75: 10.00 | DY75: 4,091.07 | EO75: 451,653.58
A76: 35. | G76: Повар | Y76: 0.5 | AO76: 14,583.24 | BF76: 3,858.00 | BX76: 6,481.44 | CQ76: 4,243.80 | DI76: 110.00 | DY76: =(BF76+CQ76)*0.5 -> 4,050.90 | EO76: =(Y76*(AO76+DY76))*12 -> 111,804.84
A77: 36. | G77: Повар | Y77: 0.5 | AO77: 14,566.46 | BF77: 3,344.00 | BX77: 6,473.98 | CQ77: 4,748.48 | DI77: 142.00 | DY77: 4,046.24 | EO77: =(Y77*(AO77+DY77))*12 -> 111,676.22
A78: 37. | G78: Уборщик территории | Y78: 0.5 | AO78: 7,443.09 | BF78: 3,063.00 | BX78: 3,308.04 | CQ78: 1,072.05 | DI78: 35.00 | DY78: 2,067.53 | EO78: =(1*(AO78+DY78))*12 -> 114,127.38
A79: 38. | G79: Кладовщик | Y79: 1 | AO79: 14,554.08 | BF79: 6,738.00 | BX79: 6,468.48 | CQ79: 1,347.60 | DI79: 20.00 | DY79: 4,042.80 | EO79: 223,162.56
A80: 39. | G80: Комендант общежития | Y80: 1 | AO80: 16,201.08 | BF80: 6,429.00 | BX80: 7,200.48 | CQ80: 2,571.60 | DI80: 40.00 | DY80: 4,500.30 | EO80: 248,416.56
A81: 40. | G81: Мойщик посуды | Y81: 0.5 | AO81: =BF81+BX81+CQ81 -> 7,458.97 | BF81: 3,369.00 | BX81: =(BF81+CQ81)*0.8 -> 3,315.10 | CQ81: =BF81*DI81/100 -> 774.87 | DI81: 23.00 | DY81: =(BF81+CQ81)*0.5 -> 2,071.94 | EO81: =(1*(AO81+DY81))*12 -> 114,370.81
A82: 41. | G82: Рабочий по КО и РЗ | Y82: 1 | AO82: 17,116.38 | BF82: 6,558.00 | BX82: 7,607.28 | CQ82: 2,951.10 | DI82: 45.00 | DY82: 4,754.55 | EO82: =(Y82*(AO82+DY82))*12-81.03 -> 262,370.13
Y83: =SUM(Y52:AN82) -> 29.5 | AO83: =SUM(AO52:BE82) -> 506,881.84 | BF83: =SUM(BF52:BW82) -> 200,667.82 | BX83: =SUM(BX52:CP82) -> 223,941.98 | CQ83: =SUM(CQ52:DH82) -> 82,272.04 | DY83: =SUM(DY52:EN82) -> 141,469.93 | EO83: =SUM(EO52:FE82) -> 7,782,485.91
Y84: =Y83+Y51+Y46+Y38+Y33 -> 70.5 | AO84: =AO33+AO38+AO46+AO51+AO83 -> 1,598,844.17 | BF84: =BF33+BF38+BF46+BF51+BF83 -> 581,322.77 | BX84: =BX33+BX38+BX46+BX51+BX83 -> 709,258.57 | CQ84: =CQ33+CQ38+CQ46+CQ51+CQ83 -> 315,449.82 | DY84: =DY33+DY38+DY46+DY51+DY83 -> 439,354.48 | EO84: =EO33+EO38+EO46+EO51+EO83 -> 24,386,148.08
A85: Итого: | Y85: х | BF85: х | BX85: х | CQ85: х | DI85: х | DY85: х | EO85: =EO84 -> 24,386,148.08
A86: * Заполняется в соответствии с приказом Минфина России от 28.07.2010 № 81н "О требованиях к плану финансово-хозяйственной деятельности государственного (муниципального) учреждения" (в редакции приказа от 29.08.2016 № 142н)

Sheet 14
A2: 1.2. Расчеты (обоснования) выплат персоналу при направлении в служебные командировки
A4: № п/п | G4: Наименование расходов | AE4: Средний размер выплаты на одного работника в день, руб. | BD4: Количество работников, чел. | BT4: Количество дней | CJ4: Сумма, руб. (гр. 3 x гр. 4 x гр. 5)
A5: 1 | G5: 2 | AE5: 3 | BD5: 4 | BT5: 5 | CJ5: 6
A6: 1 | G6: Суточные | AE6: 100 | BD6: 6 | BT6: 71 | CJ6: 7,100.00
A7: 2 | G7: Проживание в командировке | AE7: 550 | BD7: 2 | BT7: 19 | CJ7: 10,450.00
A8: 3 | G8: Проезд в командировку | AE8: 1550 | BD8: 11 | CJ8: 29,033.11
G9: Итого: | AE9: х | BD9: х | BT9: х | CJ9: 46,583.11
A11: 1.3. Расчеты (обоснования) выплат персоналу по уходу за ребенком
A13: № п/п | G13: Наименование расходов | AE13: Численность работников, получающих пособие | AZ13: Количество выплат в год на одного работника | BR13: Размер выплаты (пособия) в месяц, руб. | CJ13: Сумма, руб. (гр. 3 x гр. 4 x гр. 5)
A14: 1 | G14: 2 | AE14: 3 | AZ14: 4 | BR14: 5 | CJ14: 6
A15: 1. | G15: Пособие по уходу за ребенком до 1,5 лет | AE15: 1 | AZ15: 10 | BR15: 6,514.23 | CJ15: =AE15*AZ15*BR15 -> 65,142.30
A16: 2. | G16: Пособие по уходу за ребенком до 1,5 лет | AE16: 1 | AZ16: 6 | BR16: 15,955.14 | CJ16: =AE16*AZ16*BR16 -> 95,730.84
G17: Итого: | AE17: х | AZ17: х | BR17: х | CJ17: =SUM(CJ15:CJ16) -> 160,873.14
A19: 1.4. Расчеты (обоснования) страховых взносов на обязательное страхование в Пенсионный фонд Российской Федерации, в Фонд социального страхования Российской Федерации, в Федеральный фонд обязательного медицинского страхования
A21: № п/п | G21: Наименование государственного внебюджетного фонда | BW21: Размер базы для начисления страховых взносов, руб. | CM21: Сумма взноса, руб.
A22: 1 | G22: 2 | BW22: 3 | CM22: 4
A23: 1 | H23: Страховые взносы в Пенсионный фонд Российской Федерации, всего | BW23: х
A24: 1.1 | H24: в том числе: | BW24: 23,927,044.91 | CM24: =BW24*22% -> 5,263,949.88
H25: по ставке 22,0%
A26: 1.2 | H26: по ставке 10,0% | BW26: 463,896.93 | CM26: =BW26*10% -> 46,389.69
A27: 1.3 | H27: с применением пониженных тарифов взносов в Пенсионный фонд Российской Федерации для отдельных категорий плательщиков
A28: 2 | H28: Страховые взносы в Фонд социального страхования Российской Федерации, всего | BW28: х
A29: 2.1 | H29: в том числе: | BW29: 23,570,734.48 | CM29: =BW29*2.9%-0.07 -> 683,551.23
H30: обязательное социальное страхование на случай временной нетрудоспособности и в связи с материнством по ставке 2,9%
A31: 2.2 | H31: с применением ставки взносов в Фонд социального страхования Российской Федерации по ставке 0,0%
A32: 2.3 | H32: обязательное социальное страхование от несчастных случаев на производстве и профессиональных заболеваний по ставке 0,2% | BW32: 24,398,940.70 | CM32: =BW32*0.2% -> 48,797.88
A33: 2.4 | H33: обязательное социальное страхование от несчастных случаев на производстве и профессиональных заболеваний по ставке 0,_%*
A34: 2.5 | H34: обязательное социальное страхование от несчастных случаев на производстве и профессиональных заболеваний по ставке 0,_%*
A35: 3 | H35: Страховые взносы в Федеральный фонд обязательного медицинского страхования, всего (по ставке 5,1%) | BW35: 24,396,704.71 | CM35: =BW35*5.1% -> 1,244,231.94
G36: Итого: | BW36: х | CM36: =SUM(CM24:DA35) -> 7,286,920.62
A38: _____*_Указываются страховые тарифы, дифференцированные по классам профессионального риска, установленные Федеральным законом от 22 декабря 2005 г. № 179-ФЗ "О страховых тарифах на обязательное социальное страхование от несчастных случаев на производстве и профессиональных заболеваний на 2006 год" (Собрание законодательства Российской Федерации, 2005, № 52, ст. 5592; 2015, № 51, ст. 7233).
A40: 2. Расчеты (обоснования) расходов на социальные и иные выплаты населению
A42: Код видов расходов | X42: 321
A44: Источник финансового обеспечения | AP44: 4 - Субсидия на выполнение гос. задания
A46: № п/п | H46: Наименование показателя | BD46: Размер одной выплаты, руб. | BT46: Количество выплат в год | CJ46: Общая сумма выплат, руб. (гр. 3 x гр. 4)
A47: 1 | H47: 2 | BD47: 3 | BT47: 4 | CJ47: 5
A48: 1. | H48: Пособие в размере среднемесячного заработка в связи с сокращением | BD48: 28,507.16 | BT48: 5 | CJ48: 142,535.58
H49: Итого: | BD49: х | BT49: х | CJ49: =CJ48 -> 142,535.58
A51: Код видов расходов | X51: 112
A53: Источник финансового обеспечения | AP53: 4 - Субсидия на выполнение гос. задания
A55: № п/п | H55: Наименование показателя | BD55: Размер одной выплаты, руб. | BT55: Количество выплат в год | CJ55: Общая сумма выплат, руб. (гр. 3 x гр. 4)
A56: 1 | H56: 2 | BD56: 3 | BT56: 4 | CJ56: 5
A57: 1. | H57: Компенсация сотрудникам стоимости первичной медицинской комиссии | BD57: 3,662.28 | BT57: 20 | CJ57: 73,245.68
H58: Итого: | BD58: х | BT58: х | CJ58: =CJ57 -> 73,245.68
A60: Код видов расходов | X60: 112
A62: Источник финансового обеспечения | AP62: 5 - Субсидии на иные цели
A64: № п/п | H64: Наименование показателя | BD64: Размер одной выплаты, руб. | BT64: Количество выплат в год | CJ64: Общая сумма выплат, руб. (гр. 3 x гр. 4)
A65: 1 | H65: 2 | BD65: 3 | BT65: 4 | CJ65: 5
A66: 1. | H66: Выплаты персоналу при направлении в служебные командировки (сопровождение детей-сирот к месту отдыха и обратно) | BD66: 15,332.15 | BT66: 2 | CJ66: =BD66*BT66 -> 30,664.30
A67: 2. | H67: Оплата стоимости проезда и провоза багажа к месту отдыха и обратно | BD67: 16,243.07 | BT67: 38 | CJ67: 617,236.56
H68: Итого: | BD68: х | BT68: х | CJ68: =CJ66+CJ67 -> 647,900.86
A70: Код видов расходов | X70: 321
A72: Источник финансового обеспечения | AP72: 5 - Субсидии на иные цели
A74: № п/п | H74: Наименование показателя | BD74: Размер одной выплаты, руб. | BT74: Количество выплат в год | CJ74: Общая сумма выплат, руб. (гр. 3 x гр. 4)
A75: 1 | H75: 2 | BD75: 3 | BT75: 4 | CJ75: 5
A76: 1. | H76: Компенсационные выплаты детям-сиротам | CJ76: 1,481,922.79
A77: 2. | H77: Компенсационные выплаты учащимся из категории ТЖС | CJ77: 241,758.39
H78: Итого: | BD78: х | BT78: х | CJ78: =CJ76+CJ77 -> 1,723,681.18
A80: 3. Расчет (обоснование) расходов на уплату налогов, сборов и иных платежей
A82: Код видов расходов | X82: 321
A84: Источник финансового обеспечения | AP84: 4 - Субсидия на выполнение гос. задания
A86: № п/п | H86: Наименование расходов | BD86: Налоговая база, руб. | BT86: Ставка налога, % | CE86: Сумма исчисленного налога, подлежащего уплате, руб. (гр. 3 x гр. 4 / 100)
A87: 1 | H87: 2 | BD87: 3 | BT87: 4 | CE87: 5
A88: 1 | H88: Земельный налог (к.н. 51:28:0050001:23) | BD88: 71,338,940 | BT88: 1.5 | CE88: 1,070,084
A89: 2 | H89: Земельный налог (к.н. 51:28:0050001:1427) | BD89: 27,345,273 | BT89: 0.3 | CE89: 82,036
A90: 3 | H90: Налог на имущество | BT90: 2.2 | CE90: 1,873,000
H91: Итого: | BT91: х | CE91: =SUM(CE88:CE90) -> 3,025,120
A93: Код видов расходов | X93: 321
A95: Источник финансового обеспечения | AP95: 2 - Приносящая доход деятельность
A97: № п/п | H97: Наименование расходов | BD97: Налоговая база, руб. | BT97: Ставка налога, % | CE97: Сумма исчисленного налога, подлежащего уплате, руб. (гр. 3 x гр. 4 / 100)
A98: 1 | H98: 2 | BD98: 3 | BT98: 4 | CE98: 5
A99: 1 | H99: Налог на имущество | BT99: 2.2 | CE99: 13,237
H100: Итого: | BT100: х | CE100: =SUM(CE99:CE99) -> 13,237
A102: Код видов расходов | X102: 113
A104: Источник финансового обеспечения | AP104: 4 - Субсидия на выполнение гос. задания
A106: № п/п | H106: Наименование расходов | BD106: Сумма, руб. | BT106: количество | CE106: Сумма исчисленного налога, подлежащего уплате, руб. (гр. 3 x гр. 4 / 100)
A107: 1 | H107: 2 | BD107: 3 | BT107: 4 | CE107: 5
A108: 1 | H108: Прочие расходы (направление студентов на соревнования) | BD108: 2,248 | BT108: 10 | CE108: 22,480
H109: Итого: | BT109: х | CE109: =SUM(CE108:CE108) -> 22,480
A111: Код видов расходов | X111: 113
A113: Источник финансового обеспечения | AP113: 2 - приносящая доход деятельность
A115: № п/п | H115: Наименование расходов | BD115: Стоимость, руб. | BT115: количество | CE115: Сумма, руб.
A116: 1 | H116: 2 | BD116: 3 | BT116: 4 | CE116: 5
A117: 1 | H117: Прочие расходы (направление студентов на соревнования) | BD117: 2,000 | BT117: 10 | CE117: =BD117*BT117 -> 20,000
H118: Итого: | BT118: х | CE118: =SUM(CE117:CE117) -> 20,000
A120: Код видов расходов | X120: 853
A122: Источник финансового обеспечения | AP122: 4 - Субсидия на выполнение гос. задания
A124: № п/п | H124: Наименование расходов | BD124: Стоимость, руб. | BT124: Кол-во | CE124: Сумма, руб.
A125: 1 | H125: 2 | BD125: 3 | BT125: 4 | CE125: 5
A126: 1 | H126: Госпошлина за переоф. свид. о гос. аккредитации | BD126: 35,000 | BT126: 2 | CE126: =BD126*BT126 -> 70,000.00
A127: 1 | H127: Госпошлина за лицензирование новой программы | BD127: 3,500 | BT127: 1 | CE127: =BD127*BT127 -> 3,500.00
H128: Итого: | BT128: х | CE128: =CE126+CE127 -> 73,500.00
A130: Код видов расходов | X130: 853
A132: Источник финансового обеспечения | AP132: 2 - Приносящая доход деятельность
A134: № п/п | H134: Наименование расходов | CE134: Сумма, руб.
A135: 1 | H135: 2 | BD135: 3 | BT135: 4 | CE135: 5
A136: 1
H137: Итого: | BT137: х
A139: 4. Расчет (обоснование) расходов на безвозмездные перечисления организациям
A141: Код видов расходов
A143: Источник финансового обеспечения
A145: № п/п | H145: Наименование показателя | BD145: Размер одной выплаты, руб. | BT145: Количество выплат в год | CJ145: Общая сумма выплат, руб. (гр. 3 x гр. 4)
A146: 1 | H146: 2 | BD146: 3 | BT146: 4 | CJ146: 5
H149: Итого: | BD149: х | BT149: х
A151: 5. Расчет (обоснование) прочих расходов (кроме расходов на закупку товаров, работ, услуг)
A153: Код видов расходов | X153: 340
A155: Источник финансового обеспечения | AP155: 5 - субсидии на иные цели
A157: № п/п | H157: Наименование показателя | BD157: Размер одной выплаты, руб. | BT157: Количество выплат в год | CJ157: Общая сумма выплат, руб. (гр. 3 x гр. 4)
A158: 1 | H158: 2 | BD158: 3 | BT158: 4 | CJ158: 5
A159: 1 | H159: Стипендия учащимся академическая (89 чел.) | BD159: 1240 | CJ159: 1,324,320.00
A160: 2 | H160: Стипендия учащимся социальная (55 чел.) | BD160: 1861 | CJ160: 1,228,260.00
A161: 3 | H161: Социальная поддержка | CJ161: 123,027.00
H162: Итого: | BD162: х | BT162: х | CJ162: =SUM(CJ159:CJ161) -> 2,675,607.00
A164: 6. Расчет (обоснование) расходов на закупку товаров, работ, услуг
A166: Код видов расходов | X166: 244
A168: Источник финансового обеспечения | AP168: 4 - Субсидия на выполнение гос. задания
A170: 6.1. Расчет (обоснование) расходов на оплату услуг связи
A172: № п/п | H172: Наименование расходов | AP172: Количество номеров | BF172: Количество платежей в год | BV172: Стоимость за единицу, руб. | CL172: Сумма, руб. (гр. 3 x гр. 4 x гр. 5)
A173: 1 | H173: 2 | AP173: 3 | BF173: 4 | BV173: 5 | CL173: 6
A174: 1 | H174: Услуги телефонной связи (местной, внутризоновой, междугородной связи) | AP174: 6 | BF174: 12 | CL174: =49430.58+1461.73 -> 50,892.31
A175: 2 | H175: Услуги почтовой связи | BF175: 9 | BV175: 2048.18 | CL175: 18,433.69
A176: 3 | H176: Услуги связи по передаче данных | AP176: 1 | BF176: 1 | BV176: 4330 | CL176: 4,330.00
A177: 4 | H177: Выделенный доступ в сети Интернет | AP177: 2 | BF177: 12 | BV177: 5487 | CL177: 65,844.00
A178: 5 | H178: Сотовая связь | AP178: 1 | BF178: 2 | BV178: 250 | CL178: 500.00
H179: Итого: | AP179: х | BF179: х | BV179: х | CL179: =SUM(CL174:CL178) -> 140,000.00
A181: 6.2. Расчет (обоснование) расходов на оплату транспортных услуг
A183: № п/п | H183: Наименование расходов | BD183: Количество услуг перевозки | BT183: Цена услуги перевозки, руб. | CJ183: Сумма, руб. (гр. 3 x гр. 4)
A184: 1 | H184: 2 | BD184: 3 | BT184: 4 | CJ184: 5
A185: 1 | H185: Транспортные услуги (доставка оборудования) | BD185: 1 | BT185: 25000 | CJ185: 25000
H186: Итого: | CJ186: =CJ185 -> 25,000.00
A188: 6.3. Расчет (обоснование) расходов на оплату коммунальных услуг
A190: № п/п | H190: Наименование показателя | AP190: Размер потребления ресурсов | BF190: Тариф (с учетом НДС), руб. | BV190: Индексация, % | CL190: Сумма, руб. (гр. 4 x гр. 5 x гр. 6)
A191: 1 | H191: 2 | AP191: 4 | BF191: 5 | BV191: 6 | CL191: 6
A192: 1 | H192: Теплоэнергия | AP192: 1523.2 | BF192: 3899.28 | CL192: 5,939,395
A193: 2 | H193: Холодное водоснабжение на подогрев | AP193: 91.362 | BF193: 3899.28 | CL193: 356,245
A194: 3 | H194: Холодное водоснабжение | AP194: 4404.122 | BF194: 26.2 | CL194: 115,388
A195: 4 | H195: Водоотведение | AP195: 4404.122 | BF195: 93.45 | CL195: 411,565
A196: 5 | H196: Электроэнегрия | AP196: 232388 | BF196: 4.5456 | CL196: 1,056,343
H197: Итого: | AP197: х | BF197: х | BV197: х | CL197: 7,878,936
A200: 6.4. Расчет (обоснование) расходов на оплату аренды имущества
A202: № п/п | H202: Наименование показателя | BD202: Количество | BT202: Ставка арендной платы | CJ202: Стоимость с учетом НДС, руб.
A203: 1 | H203: 2 | BD203: 4 | BT203: 5 | CJ203: 6
H206: Итого: | BD206: х | BT206: х | CJ206: х
A208: 6.5. Расчет (обоснование) расходов на оплату работ, услуг по содержанию имущества
A210: № п/п | H210: Наименование расходов | BD210: Объект | BT210: Количество работ (услуг) | CJ210: Стоимость работ (услуг), руб.
A211: 1 | H211: 2 | BD211: 3 | BT211: 4 | CJ211: 5
A212: 1 | H212: т/о оборудования учета и контроля теплоэнергии | BT212: 12 | CJ212: 25,200.00
A213: 2 | H213: т/о отопительной системы, в т.ч. на подготовку к зимнему сезону | BT213: 3 | CJ213: 44,000.00
A214: 3 | H214: Дератизация, дезинсекция | BT214: 12 | CJ214: 23,976.62
A215: 4 | H215: Дублирование сигнала на пульт пожарной части | BT215: 5 | CJ215: 18,000.00
A216: 5 | H216: Заправка газовых баллонов (учебный норматив) | BT216: 4 | CJ216: 4,400.00
A217: 6 | H217: Вывоз ТБО | BT217: 12 | CJ217: 36,148.33
A218: 7 | H218: Предрейсовый техосмотр автотранспорта | CJ218: =32270.2+1881 -> 34,151.20
A219: 8 | H219: Т/о систем пожарной сигнализации | BT219: 12 | CJ219: 96,000.00
A220: 9 | H220: Т/о и регламентно-профилактический ремонт систем охранно-тревожной сигнализации | BT220: 12 | CJ220: 10,162.93
A221: 10 | H221: Т/о системы видеонаблюдения | BT221: 12 | CJ221: 36,000.00
A222: 11 | H222: Затраты на обязательное страхование гражданской ответственности владельцев транспортных средств | BT222: 2 | CJ222: 6,391.33
A223: 12 | H223: Ремонт автотранспорта | CJ223: 27,195.00
A224: 13 | H224: Ремонт бытовой техники | BT224: 1 | CJ224: 6,000.00
A225: 14 | H225: Поверка электросчетчиков, манометров, весового хозяйства | BT225: 1 | CJ225: 12,581.76
A226: 15 | H226: Стирка и обработка постельных принадлежностей и прочего мягкого инвентаря | BT226: 50 | CJ226: 14,919.19
A227: 16 | H227: Заправка картриджей | BT227: 75 | CJ227: 37,900.00
A228: 17 | H228: Зарядка огнетушителей | CJ228: 11,119.00
H229: Итого: | BD229: х | BT229: х | CJ229: =SUM(CJ212:CJ228) -> 444,145.36
A231: 6.6. Расчет (обоснование) расходов на оплату прочих работ, услуг
A233: № п/п | H233: Наименование расходов | BT233: Количество услуг | CJ233: Стоимость услуги, руб.
A234: 1 | H234: 2 | BT234: 3 | CJ234: 4
A235: 1 | H235: Утилизация ртутьсодержащих отходов | BT235: 246 | CJ235: 3,500.00
A236: 2 | H236: Сопровождение программ | BT236: 3 | CJ236: =64992+4000+2490 -> 71,482.00
A237: 3 | H237: Медицинские осмотры работников | BT237: 63 | CJ237: =156000+6537 -> 162,537.00
A238: 4 | H238: Предрейсовые, послерейсовые осмотры водителя | CJ238: 19,400.00
A239: 5 | H239: Услуги нотариуса | BT239: 2 | CJ239: =600+3800 -> 4,400.00
A240: 6 | H240: Проведение спец. оценки труда | BT240: 1 | CJ240: 27,800.00
A241: 7 | H241: Исследование воды, смывов, пищевых продуктов | BT241: 15 | CJ241: =46661.69+4762.56 -> 51,424.25
A242: 8 | H242: Подписка на периодические издания | BT242: 2 | CJ242: =15480+143333.37 -> 158,813.37
A243: 9 | H243: Реклама, объявления в СМИ | BT243: 1 | CJ243: =18800+4800 -> 23,600.00
A244: 10 | H244: Размещение ТБО | BT244: 12 | CJ244: 6,958.88
A245: 11 | H245: Услуги ДОСААФ (проф. подготовка "В" на "С") | BT245: 4 | CJ245: 488,750.00
A246: 12 | H246: Доступ к электронным изданиям (ЭБС) (учебн. норм.) | BT246: 1 | CJ246: 11,497.92
A247: 13 | H247: Изготовление дубликатов ТУ | CJ247: 4,000.00
A248: 14 | H248: Страхование автотранпорта | BT248: 2 | CJ248: 6,391.33
A249: 15 | H249: Обучение сотрудников, семинары, курсы повышения квалификации | BT249: 4 | CJ249: =6975+24000+16400+23000+13000+21000+3000 -> 107,375.00
A250: 16 | H250: Проверка работоспособности на водоотдачу кранов внутреннего пожарного водопровода и перекатку рукавов, ремонт | BT250: 1 | CJ250: =14450+3642 -> 18,092.00
A251: 17 | H251: Приобретение лицензий на право использование СЗКИ, выпуск ключей, продление домена | BT251: 5 | CJ251: =1800+3115+899 -> 5,814.00
H252: Итого: | BT252: х | CJ252: =SUM(CJ235:CJ251) -> 1,171,835.75
A254: 6.7. Расчет (обоснование) расходов на приобретение основных средств, материальных запасов
A256: Код видов расходов | X256: 244
A258: Источник финансового обеспечения | AP258: 4 - Субсидии на выполнение гос. задания
A260: № п/п | H260: Наименование расходов | BD260: Количество | BT260: Средняя стоимость, руб. | CJ260: Сумма, руб. (гр. 2 x гр. 3)
H261: 1 | BD261: 2 | BT261: 3 | CJ261: 4
A262: 1 | H262: ГСМ на общехозяйственные расходы | BD262: 4055 | BT262: 40 | CJ262: 162,203.54
A263: 2 | H263: Спецодежда, мягкий инвентарь (СИЗ) | BD263: 42 | BT263: 700 | CJ263: 9,590.44
A264: 3 | H264: Канцелярские принадлежности (на 1 чел) | BD264: 45 | BT264: 2600 | CJ264: =9900+1849.9+9249.5+73010+80000 -> 174,009.40
A265: 4 | H265: Моющие, дезинфицирующие средства (на 1м2) | BD265: 10533.7 | BT265: 10.44 | CJ265: =26190.87+100000 -> 126,190.87
A266: 5 | H266: Перевязочные средства и медикаменты | BD266: 150 | BT266: 66.67 | CJ266: 12,025.90
A267: 6 | H267: Строительные материалы (на 1м2) | BD267: 10533.7 | BT267: 18.83 | CJ267: =35000+32804+1539+5429.5 -> 74,772.50
A268: 7 | H268: Приобретение МЗ (учеб. норм.) | CJ268: =5400+4078+36620+43330+83893.06+46723+74984.96 -> 295,029.02
A269: 8 | H269: Приобретение ОС (учебн. норм.) | CJ269: =490000+83025+42800+32000+5908.3+8410+4299 -> 666,442.30
A270: 9 | H270: Приобретение МЗ (картриджи, кухонный инвентарь, компьют. комплектующие) | CJ270: =1870+15000+35000+135+2037.08+990 -> 55,032.08
A271: 10 | H271: Приобретение ОС (обогреватели) | CJ271: 7,000.00
... 44 more rows

Sheet 15
A1: Расчет объемов субсидии на выполнение государственного задания на 2018 год
E2: руб.
A3: Наименование затрат | B3: ед. изм. | C3: количество | D3: расчет | E3: сумма
A4: Затраты на оплату труда с начислениями на выплаты по оплате труда в том числе: | E4: =E5+E8+E9 -> 29,035,824.55
A5: Заработная плата работникам | B5: руб. | C5: 64 | E5: 22,096,389.20
A6: в том числе: - материальная помощь педработникам | B6: руб. | C6: 24 | D6: 8915 | E6: 213,951.77
A7: - материальная помощь АУП | B7: руб. | C7: 2 | D7: 16642 | E7: 33,284.00
A8: Начисления на оплату труда | B8: руб. | E8: 6,673,109.54
A9: Иные выплаты | B9: руб. | E9: =142535.58+123790.23 -> 266,325.81
A10: Затраты на приобретение услуг связи в т.ч. | E10: =E11+E12+E13+E14+E15 -> 140,000.00
A11: услуги телефонной связи (местной, внутризоновой, междугородней телефонной связи) | C11: 12 | D11: 4119,2 мин * 12 мес. | E11: =49430.58+1461.73 -> 50,892.31
A12: услуги почтовой связи: | C12: 12 | D12: 2048 руб * 9 мес. | E12: 18,433.69
A13: услуги связи по передаче данных | C13: 1 | D13: 4330 руб.*1 мес. | E13: 4,330.00
A14: выделенный доступ в сети интернет | C14: 12 | D14: 5487 руб. * 12 мес. | E14: 65,844.00
A15: сотовая связь | C15: 2 | D15: 250 руб. * 2 мес. | E15: 500.00
A16: Затраты на приобретение транспортных услуг в т.ч. | E16: =SUM(E17:E19) -> 25,000.00
A17: доставка грузов | E17: 25,000.00
A18: найм транспортных средств
A19: оплата проезда работников в служебные командировки
A20: Затраты на приобретение коммунальных услуг в т.ч. | E20: 7,878,936.00
A21: электроснабжение | B21: кВт/ч | C21: 232388 | D21: 232388 кВт/ч * 4,5456 руб. | E21: 1,056,343.00
A22: теплоснабжение | B22: гКал | C22: 1523.2 | D22: 1523,2 гКал * 3899,28 руб. | E22: 5,939,395.00
A23: водоснабжение на подог | B23: м3 | C23: 91.362 | D23: 91,362 м3 * 3899,28 руб. | E23: 356,245.00
A24: водоснабжение | B24: м3 | C24: 3416 | D24: 4404,122 м3 * 26,20 руб. | E24: 115,388.00
A25: водоотведение | B25: м3 | C25: 93.45 | D25: 4404,122 м3 * 93,45 руб. | E25: 411,565.00
A26: Затраты на содержание недвижимого имущества в т.ч. | E26: =E27+E28+E29+E30+E31+E32+E33+E34+E35+E36+E37+E39+E38 -> 1,278,947.50
A27: Техническое обслуживание индивидуального теплового пункта | C27: 2100 | D27: 2100 руб * 12 мес. | E27: 25,200.00
A28: техническое обслуживание отопительной системы, в том числе на подготовку к зимнему сезону (кол-во зданий) | B28: шт. | C28: 3 | D28: 14666,66 руб * 3 шт. | E28: 44,000.00
A29: Дератизация, дезинсекция помещений | B29: м3 | D29: 3886 м 2*3,34 руб = 16700 руб 3886 м2 * 2,83 руб. = 14150 руб. | E29: 23,976.62
A30: Дублирование сигнала на пульт пожарной части | D30: 3600 руб. * 5 мес | E30: 18,000.00
A31: Заправка газовых баллонов (уч.норм.) | D31: 1100 руб. * 4 шт | E31: =4400+5856.95 -> 10,256.95
A32: вывоз твердых бытовых отходов | B32: куб.м | C32: 86.26 | D32: 86,26 куб.м * 524,65 | E32: 36,148.33
A33: размещение, переработка твердых бытовых отходов крупногабаритного мусора, захоронение ТБО и содержание контейнерных площадок | B33: куб.м | C33: 86.26 | D33: 86,26 куб.м * 80,67 | E33: 6,958.88
A34: Проверка работоспособности пожарных кранов | B34: усл. | C34: 1 | D34: 1 * 18092 руб. | E34: 18,092.00
A35: Техническое облуживание и регламентно-профилактический ремонт пожарной сигнализации | B35: усл. | C35: 12 | D35: 8000 руб * 12 мес. | E35: 96,000.00
A36: Техническое облуживание видеонаблюдения | B36: усл. | C36: 12 | D36: 3000 руб * 12 мес. | E36: 36,000.00
A37: Содержание в чистоте территории (дог. подряда) | B37: усл. | E37: 35,858.17
A38: Ремонтные работы | E38: 545,710.23
A39: Вознаграждения по дог. подряда (уборка, охрана) | E39: 382,746.32
A40: Затраты на содержание особо ценного движимого имущества в т.ч. | E40: =E41+E42+E43+E44+E45+E46+E48 -> 102,873.55
A41: техническое обслуживание и регламентно-профилактический ремонт систем охранно-тревожной сигнализации | B41: мес. | C41: 10 | D41: 1016,29 руб * 10 мес. | E41: 10,162.93
A42: техническое обслуживание автотранспорта | B42: усл. | C42: 178 | D42: 192 руб * 178 пос. | E42: 34,151.20
A43: Затраты на обязательное страхование гражданской ответственности владельцев транспортных средств | B43: усл. | C43: 2 | D43: 3195,66 руб * 2 | E43: 6,391.33
A44: Ремонт автотранспорта | B44: усл. | C44: 5 | D44: 5439 руб * 5 | E44: 27,195.00
A45: Страхование автотранспорта | B45: усл. | C45: 2 | D45: 3195,66 руб * 2 | E45: 6,391.33
A46: Ремонт бытовой техники | B46: усл. | C46: 1 | D46: 6000 руб * 1 | E46: 6,000.00
A47: Обслуживание холодильного, технического оборудования | B47: усл.
A48: Поверка электросчетчиков, маномаетров, весового хозяйства | B48: усл. | C48: 1 | E48: 12,581.76
A49: Затраты на прочие общехозяйственные нужды в т.ч. | E49: =E50+E51+E52+E53+E54+E55+E56+E57+E58+E59+E60+E61+E62+E63+E64+E65+E66+E67+E68+E69+E70+E71+E72+E73+E74+E75+E76+E77+E78 -> 2,937,382.06
A50: Техническое обслуживание - поверка диэлектрических перчаток, заправка огнетушителей, испытание рукавов | B50: шт. | E50: 11,119.00
A51: утилизация ртутьсодержащих отходов | B51: шт. | C51: 100 | D51: 100 шт * 35 руб. | E51: 3,500.00
A52: стирка и обработка постельных принадлежностей и прочего мягкого инвентаря | B52: компл. | D52: 1 шт. * 14919,19 руб. | E52: 14,919.19
A53: заправка картриджей | B53: шт. | C53: 76 | D53: 76 шт. * 500 руб | E53: 37,900.00
A54: сопровождение программ бухгалтерского учета | B54: шт. | D54: 12 мес * 5416 руб. = 64992 руб. (1С); 1 мес. * 6490 руб.= 6490 руб.(СБИС) | E54: 71,482.00
A55: медицинские обследования работников | B55: чел. | C55: 63 | D55: 63 чел * 4500 руб. | E55: 162,537.00
A56: предрейсовые медосмотры водителя | B56: пос. | C56: 194 | D56: 194 пос. * 100 руб. | E56: 19,400.00
A57: услуги нотариуса | B57: шт. | C57: 2 | D57: 2 * 2200 руб. | E57: 4,400.00
A58: семинары, курсы повышения квалификации | B58: шт. | E58: 107,375.00
A59: Исследование воды, смывов, пищевых продуктов | B59: усл. | C59: 1 | D59: 1 * 51424,25 руб. | E59: 51,424.25
A60: подписка на периодические издания | B60: шт. | C60: 2 | D60: 2 шт. * 79406,68 руб. | E60: 158,813.37
A61: реклама, объявления в СМИ | B61: шт. | C61: 1 | D61: 1 * 23600 руб | E61: 23,600.00
A62: ГСМ на общехозяйственные расходы | B62: л | C62: 4055 | D62: 4055 л * 40 руб | E62: 162,203.54
A63: спецодежда, мягкий инвентарь | B63: шт. | C63: 42 | D63: 42 шт * 700 руб. | E63: 9,590.44
A64: канцелярские принадлежности | B64: шт. | E64: =9249.5+9900+1849.9+73010+80000 -> 174,009.40
A65: моющие, дезинфицирующие средства | B65: шт. | E65: =26190.87+100000 -> 126,190.87
A66: перевязочные средства и медикаменты | B66: шт. | E66: 12,025.90
A67: строительные материалы | B67: шт. | E67: 74,772.50
A68: прочие расходы (направление студентов на соревнования) | B68: усл. | C68: 10 | D68: 2248 руб. * 10 | E68: 22,480.00
A69: госпошлина за переоформление лицензии | B69: шт. | C69: 3 | D69: 2 * 35000 руб.; 1*3500 руб. | E69: 73,500.00
A70: услуги ДОСААФ (проф.подготовка и переподготовка учащихся кат. "В" на "С") | B70: усл. | C70: 3 | D70: Категория "В" на "С" 488750 руб. | E70: 488,750.00
A71: Проведение специальной оценки условий труда | B71: усл. | C71: 1 | D71: 27800 руб * 1 | E71: 27,800.00
A72: Изготовление дубликатов технических условий | B72: усл. | C72: 3 | D72: 1333 руб * 3 | E72: 4,000.00
A73: Приобретение лицензий на право использования СЗКИ, выпуск ключей, продление домена | B73: усл. | C73: 3 | D73: 1938 руб. * 3 | E73: 5,814.00
A74: Доступ к электронным изданиям (уч. норматив) | B74: усл. | C74: 1 | D74: 68497,91 * 1 | E74: =11497.92+56999.99 -> 68,497.91
A75: Приобретение МЗ (учеб.норматив) | E75: 295,029.02
A76: Приобретение ОС (учеб. норматив) | E76: =662143.3+4299 -> 666,442.30
A77: Приобретение МЗ | E77: 52,806.37
A78: Приобретение ОС | E78: 7,000.00
A81: Налог на имущество | E81: 1,873,000.00
A82: Земельный налог | E82: 1,152,120.00
A83: Учебные расходы (в соответствии с Законом Мурманской области от 19.12.2005 № 706-01-ЗМО) | D83: 3930 руб * 285 чел. | E83: 1,120,050.00
A84: Итого | E84: =E49+E40+E26+E20+E16+E10+E4+E81+E82 -> 44,424,083.66
A86: И.о. директора | D86: О.И. Макашина
A87: Гл.бухгалтер | D87: О.А. Федорова
A88: Исполнитель Федорова О.А.
A89: (81532) 74763
